bitfinex-derivatives/quotes_SOLF0:USTF0_20240829
["timestamp","ask_amount","ask_price","bid_price","bid_amount"]
[1724946482027,26.24,146.55,146.48,1.2985]
[1724946482339,3.4112,146.53,146.46,5.02]
[1724946482538,0.04898905,146.51,146.48,0.04989334]
[1724946483235,0.04898905,146.51,146.5,3.4117]
[1724946483534,0.04898905,146.51,146.48,0.04989334]
[1724946484439,0.04898905,146.51,146.5,3.4117]
[1724946485734,3.4101,146.57,146.53,3.411]
[1724946486239,2.5273,146.6,146.51,31.26]
[1724946486435,26.24,146.63,146.54,26.24]
[1724946486634,0.04328076,146.6,146.57,0.05019868]
[1724946486836,0.04328076,146.6,146.57,3.46029868]
[1724946487430,0.04328076,146.6,146.57,0.05019868]
[1724946487638,1.3751,146.64,146.5,1.3355]
[1724946487639,26.24,146.59,146.5,1.3355]
[1724946487839,26.24,146.57,146.51,5.02]
[1724946488139,3.4107,146.55,146.51,8.4314]
[1724946488338,3.4107,146.55,146.51,3.4114]
[1724946488739,0.04632185,146.54,146.52,0.04697712]
[1724946489242,0.04632185,146.54,146.52,3.45817712]
[1724946489835,0.04632185,146.54,146.52,0.04697712]
[1724946490234,3.45722185,146.54,146.52,0.04697712]
[1724946490641,0.04632185,146.54,146.52,0.04697712]
[1724946492547,3.411,146.53,146.52,0.04697712]
[1724946493148,3.45712185,146.54,146.52,0.04697712]
[1724946494049,0.04632185,146.54,146.52,0.04697712]
[1724946495447,0.04632185,146.54,146.53,3.411]
[1724946495848,0.04632185,146.54,146.53,8.431]
[1724946496948,0.04632185,146.54,146.53,5.02]
[1724946497551,0.04632185,146.54,146.52,0.04697712]
[1724946499359,3.45732185,146.54,146.52,0.04697712]
[1724946499560,0.04632185,146.54,146.52,0.04697712]
[1724946499956,3.45722185,146.54,146.52,0.04697712]
[1724946500150,0.04632185,146.54,146.52,0.04697712]
[1724946500751,0.04632185,146.54,146.52,3.45817712]
[1724946502761,3.45712185,146.54,146.52,0.04697712]
[1724946502961,0.04632185,146.54,146.52,0.04697712]
[1724946503266,3.45722185,146.54,146.52,0.04697712]
[1724946503662,0.04632185,146.54,146.52,0.04697712]
[1724946504066,3.411,146.53,146.52,0.04697712]
[1724946504468,0.04632185,146.54,146.47,5.02]
[1724946504671,0.04632185,146.54,146.48,3.412]
[1724946504966,0.04632185,146.54,146.47,5.02]
[1724946505163,3.4118,146.5,146.47,8.4323]
[1724946505561,0.04804415,146.5,146.47,0.05072163]
[1724946506169,3.4122,146.48,146.47,0.05072163]
[1724946506365,6.8215,146.55,146.41,26.24]
[1724946506366,26.24,146.49,146.41,26.24]
[1724946506574,3.4129,146.45,146.42,3.4134]
[1724946506776,27.5624,146.49,146.42,3.4134]
[1724946507072,3.4124,146.47,146.42,3.4134]
[1724946507573,0.04851883,146.46,146.43,0.05169836]
[1724946507877,3.46121883,146.46,146.43,0.05169836]
[1724946508269,0.04851883,146.46,146.43,3.46499836]
[1724946509473,3.46121883,146.46,146.43,0.05169836]
[1724946510471,0.04851883,146.46,146.43,3.46499836]
[1724946511472,0.04851883,146.46,146.44,3.413]
[1724946511672,0.04851883,146.46,146.45,29.5953118]
[1724946511872,229.8192,146.6,146.45,29.5953118]
[1724946511873,26.24,146.55,146.46,3.33654226]
[1724946512072,3.4112,146.53,146.49,3.4118]
[1724946512776,3.46130046,146.52,146.5,0.04358155]
[1724946512977,0.05000046,146.52,146.5,0.04358155]
[1724946513775,3.4115,146.51,146.5,0.04358155]
[1724946515980,0.05000046,146.52,146.5,0.04358155]
[1724946516477,0.05000046,146.52,146.51,3.4115]
[1724946518169,0.05000046,146.52,146.51,29.6515]
[1724946518573,0.05000046,146.52,146.51,30.9427]
[1724946518768,2.5824,146.61,146.55,3.4104]
[1724946519171,2.5824,146.61,146.53,29.58722809]
[1724946519369,3.4096,146.6,146.53,29.58722809]
[1724946519573,2.5824,146.61,146.53,29.58722809]
[1724946519773,3.45478757,146.58,146.56,0.05111014]
[1724946520270,3.4101,146.57,146.56,0.05111014]
[1724946521376,3.45478757,146.58,146.56,0.05111014]
[1724946521881,0.04478757,146.58,146.56,0.05111014]
[1724946522487,0.04478757,146.58,146.56,3.46131014]
[1724946522684,3.45468757,146.58,146.56,3.46131014]
[1724946522980,0.04478757,146.58,146.56,0.05111014]
[1724946523377,3.4101,146.57,146.56,0.05111014]
[1724946523575,0.04478757,146.58,146.56,0.05111014]
[1724946524479,3.4101,146.57,146.56,0.05111014]
[1724946525387,26.24,146.57,146.5,5.02]
[1724946525784,3.4107,146.55,146.5,5.02]
[1724946526288,0.0439068,146.54,146.51,3.4629716]
[1724946526582,3.4547068,146.54,146.51,3.4629716]
[1724946526785,0.0439068,146.54,146.52,3.4113]
[1724946527086,0.0439068,146.54,146.51,0.0515716]
[1724946527482,0.0439068,146.54,146.52,3.4111]
[1724946528278,0.0439068,146.54,146.51,3.4629716]
[1724946528688,3.4113,146.52,146.51,0.0515716]
[1724946529982,3.4111,146.53,146.51,0.0515716]
[1724946530282,0.0439068,146.54,146.52,3.4111]
[1724946530882,0.0439068,146.54,146.51,3.4629716]
[1724946531481,3.4548068,146.54,146.51,0.0515716]
[1724946532283,0.0439068,146.54,146.51,0.0515716]
[1724946532893,0.0439068,146.54,146.51,3.4629716]
[1724946533391,0.0439068,146.54,146.51,0.0515716]
[1724946533596,3.4547068,146.54,146.51,3.4629716]
[1724946533997,0.0439068,146.54,146.51,3.4629716]
[1724946534894,3.4547068,146.54,146.51,3.4629716]
[1724946535394,3.4547068,146.54,146.51,0.0515716]
[1724946535595,3.4111,146.53,146.51,0.0515716]
[1724946536790,3.4548068,146.54,146.51,0.0515716]
[1724946537391,0.0439068,146.54,146.51,3.4629716]
[1724946537995,0.0439068,146.54,146.51,0.0515716]
[1724946538694,0.0439068,146.54,146.52,3.4113]
[1724946539196,0.0439068,146.54,146.53,3.411]
[1724946542987,0.0439068,146.54,146.53,6.75401971]
[1724946544094,89.78188153,146.62,146.53,3.34301971]
[1724946544293,89.78188153,146.62,146.53,1.2844]
[1724946544494,3.4097,146.59,146.53,1.2844]
[1724946544693,89.78188153,146.62,146.56,3.4102]
[1724946545097,0.04304543,146.6,146.58,0.0487929]
[1724946545692,3.4097,146.59,146.58,0.0487929]
[1724946545991,0.04304543,146.6,146.58,0.0487929]
[1724946546391,0.04304543,146.6,146.59,3.4096]
[1724946548804,3.4083,146.65,146.59,3.4096]
[1724946549104,3.4082,146.66,146.58,1.3451929]
[1724946549402,3.4082,146.66,146.59,1.3467]
[1724946549801,27.5698,146.68,146.59,1.3467]
[1724946550103,0.0430834,146.64,146.61,0.0502923]
[1724946550500,0.0430834,146.64,146.61,3.4592923]
[1724946551205,26.2830834,146.64,146.61,0.0502923]
[1724946551706,3.4089,146.62,146.61,0.0502923]
[1724946552599,3.4088,146.63,146.61,0.0502923]
[1724946552909,26.2830834,146.64,146.61,0.0502923]
[1724946553104,3.4089,146.62,146.61,0.0502923]
[1724946553401,29.6489,146.62,146.61,0.0502923]
[1724946553601,3.4088,146.63,146.61,0.0502923]
[1724946553901,0.0430834,146.64,146.61,0.0502923]
[1724946555100,0.0430834,146.64,146.63,3.4087]
[1724946556402,0.0430834,146.64,146.63,6.8414623]
[1724946558309,572.2163,146.78,146.63,29.6727623]
[1724946558499,3.4073,146.7,146.63,26.24]
[1724946558700,3.4073,146.7,146.64,3.47229769]
[1724946559098,3.4073,146.7,146.67,3.4077]
[1724946559303,3.4073,146.69,146.67,3.45330531]
[1724946561104,0.04315686,146.7,146.68,3.4075]
[1724946562002,0.04315686,146.7,146.69,3.4073]
[1724946566524,0.04315686,146.7,146.69,8.2873]
[1724946570225,0.04315686,146.7,146.69,34.5273]
[1724946570635,1.3017,146.77,146.73,3.4063]
[1724946570931,3.4058,146.76,146.73,3.4063]
[1724946571130,1.3017,146.77,146.69,31.12]
[1724946571532,3.45730098,146.74,146.72,0.04881214]
[1724946573130,0.05110098,146.74,146.72,0.04881214]
[1724946574036,0.05110098,146.74,146.73,3.4064]
[1724946574432,0.05110098,146.74,146.72,0.04881214]
[1724946575630,0.05110098,146.74,146.72,3.45531214]
[1724946576030,0.05110098,146.74,146.72,0.04881214]
[1724946576636,0.05110098,146.74,146.73,6.85885628]
[1724946576832,0.05110098,146.74,146.72,0.04881214]
[1724946577333,3.4064,146.73,146.72,0.04881214]
[1724946577837,3.45730098,146.74,146.72,0.04881214]
[1724946578228,0.05110098,146.74,146.72,0.04881214]
[1724946578531,0.05110098,146.74,146.72,3.45531214]
[1724946578731,0.05110098,146.74,146.72,0.04881214]
[1724946579144,0.05110098,146.74,146.73,3.4064]
[1724946579535,0.05110098,146.74,146.72,0.04881214]
[1724946580041,3.45740098,146.74,146.72,0.04881214]
[1724946580239,26.24,146.78,146.72,0.04881214]
[1724946580742,26.24,146.78,146.72,3.45531214]
[1724946581236,3.45635161,146.76,146.73,3.4062]
[1724946581437,0.05055161,146.76,146.73,3.4062]
[1724946581640,0.05055161,146.76,146.72,0.04881214]
[1724946581843,0.05055161,146.76,146.75,3.4059]
[1724946583139,0.05055161,146.76,146.75,8.2859]
[1724946583640,0.05055161,146.76,146.75,9.6001]
[1724946584046,3.4044,146.82,146.79,3.405]
[1724946584344,28.9416,146.86,146.79,3.405]
[1724946585145,0.04959598,146.84,146.81,0.04485219]
[1724946585838,3.4042,146.83,146.81,0.04485219]
[1724946587249,3.4043,146.82,146.81,0.04485219]
[1724946587841,3.4042,146.83,146.81,0.04485219]
[1724946588042,0.04959598,146.84,146.81,0.04485219]
[1724946588745,0.04959598,146.84,146.82,3.4043]
[1724946589452,3.45339598,146.84,146.82,3.4043]
[1724946589650,0.04959598,146.84,146.81,0.04485219]
[1724946592451,0.04959598,146.84,146.82,3.4041]
[1724946594751,0.04959598,146.84,146.83,3.4041]
[1724946596048,0.04959598,146.84,146.82,3.4042]
[1724946597554,0.04959598,146.84,146.81,3.44925219]
[1724946597954,0.04959598,146.84,146.81,0.04485219]
[1724946598353,3.4042,146.83,146.81,0.04485219]
[1724946598558,0.04959598,146.84,146.81,0.04485219]
[1724946598956,3.4043,146.82,146.81,0.04485219]
[1724946599357,3.4048,146.8,146.76,4.8]
[1724946599548,28.8792,146.83,146.76,4.8]
[1724946599950,3.4046,146.81,146.76,4.8]
[1724946600253,1.2777,146.83,146.77,26.24]
[1724946600449,0.05151292,146.81,146.79,0.04552409]
[1724946600851,0.05151292,146.81,146.8,3.4047]
[1724946609168,0.05151292,146.81,146.79,29.69042409]
[1724946609362,0.05151292,146.81,146.79,0.04552409]
[1724946609663,26.24,146.8,146.71,53.48]
[1724946609868,3.4058,146.76,146.71,3.4067]
[1724946610164,3.4058,146.76,146.7,4.8]
[1724946610165,26.24,146.78,146.7,4.8]
[1724946610364,26.24,146.78,146.72,3.4064]
[1724946610563,0.05241247,146.76,146.74,0.04778483]
[1724946610955,3.4061,146.75,146.74,0.04778483]
[1724946611161,0.05241247,146.76,146.74,0.04778483]
[1724946611472,0.05241247,146.76,146.75,3.4059]
[1724946611963,0.05241247,146.76,146.74,0.04778483]
[1724946615764,0.05241247,146.76,146.74,3.45378483]
[1724946616463,0.05241247,146.76,146.74,0.04778483]
[1724946617165,3.45831247,146.76,146.74,0.04778483]
[1724946617372,0.05241247,146.76,146.74,0.04778483]
[1724946617759,3.4059,146.75,146.74,0.04778483]
[1724946617969,26.29241247,146.76,146.68,3.47605519]
[1724946618161,26.24,146.76,146.68,4.78]
[1724946618371,26.24,146.76,146.68,3.4074]
[1724946618864,3.4068,146.72,146.68,6.78163447]
[1724946619059,0.04346393,146.71,146.69,0.04670238]
[1724946619259,0.04459497,146.71,146.69,0.04670238]
[1724946620466,0.04459497,146.71,146.7,3.4071]
[1724946625869,0.04459497,146.71,146.69,26.28670238]
[1724946625870,1.3639,146.78,146.73,3.4062]
[1724946626069,3.4056,146.77,146.72,26.24]
[1724946626269,1.3639,146.78,146.75,3.4058]
[1724946626473,27.5772,146.81,146.72,26.24]
[1724946626670,3.4052,146.79,146.72,26.24]
[1724946626866,0.04885292,146.77,146.76,3.4057]
[1724946627271,0.04885292,146.77,146.76,29.6457]
[1724946628170,1.34,146.84,146.76,34.49443419]
[1724946628373,1.34,146.84,146.78,26.24]
[1724946628563,3.4037,146.85,146.78,26.24]
[1724946628765,345.0303,146.88,146.78,26.24]
[1724946629171,0.04434649,146.84,146.82,0.04459017]
[1724946629565,3.44834649,146.84,146.82,0.04459017]
[1724946629874,0.04434649,146.84,146.82,0.04459017]
[1724946630380,3.4041,146.83,146.82,0.04459017]
[1724946630677,0.04434649,146.84,146.82,0.04459017]
[1724946630869,3.44834649,146.84,146.82,0.04459017]
[1724946633281,0.04434649,146.84,146.82,3.44889017]
[1724946633572,0.04434649,146.84,146.82,0.04459017]
[1724946633785,0.04434649,146.84,146.82,3.44889017]
[1724946634085,26.28434649,146.84,146.82,0.04459017]
[1724946634685,3.4041,146.83,146.82,0.04459017]
[1724946636280,3.44834649,146.84,146.82,0.04459017]
[1724946636883,0.04434649,146.84,146.82,3.44869017]
[1724946637087,0.04434649,146.84,146.82,0.04459017]
[1724946637487,0.04434649,146.84,146.83,3.4041]
[1724946637684,0.04434649,146.84,146.83,29.6441]
[1724946638496,572.2027,146.97,146.85,3.4035]
[1724946638784,3.4028,146.89,146.85,3.4035]
[1724946639091,3.4028,146.89,146.86,3.4033]
[1724946639591,3.44989307,146.89,146.86,3.44778355]
[1724946640293,0.04709307,146.89,146.87,3.4031]
[1724946640991,0.04709307,146.89,146.88,3.4029]
[1724946643199,0.04709307,146.89,146.87,3.4031]
[1724946644391,0.04709307,146.89,146.88,3.4029]
[1724946654903,0.04709307,146.89,146.86,0.04448355]
[1724946655098,0.04709307,146.89,146.86,4.92448355]
[1724946655500,0.04709307,146.89,146.88,3.4029]
[1724946657211,0.04709307,146.89,146.88,29.6429]
[1724946657499,287.71078581,147.01,146.92,3.4018]
[1724946657500,32.28431276,147.0,146.92,3.4018]
[1724946657694,32.28431276,147.0,146.91,4.88]
[1724946657899,32.28431276,147.0,146.92,3.4018]
[1724946658100,3.4014,146.95,146.92,3.4018]
[1724946658300,0.04768116,146.95,146.94,3.4015]
[1724946658503,0.04768116,146.95,146.92,0.04701047]
[1724946658900,0.04768116,146.95,146.92,3.44891047]
[1724946659411,3.44908116,146.95,146.92,3.44891047]
[1724946660696,3.4016,146.94,146.92,0.04701047]
[1724946661296,3.4017,146.93,146.92,0.04701047]
[1724946662206,0.04768116,146.95,146.92,0.04701047]
[1724946662997,0.04768116,146.95,146.92,26.28701047]
[1724946663411,0.04768116,146.95,146.94,3.4015]
[1724946665707,0.04768116,146.95,146.92,26.28701047]
[1724946666003,0.04768116,146.95,146.92,31.16701047]
[1724946666412,0.04768116,146.95,146.92,4.92701047]
[1724946666605,0.04768116,146.95,146.92,0.04701047]
[1724946667209,3.4016,146.94,146.92,0.04701047]
[1724946667405,0.04768116,146.95,146.92,0.04701047]
[1724946668610,3.4016,146.94,146.92,0.04701047]
[1724946669208,3.4017,146.93,146.92,0.04701047]
[1724946670103,26.24,146.94,146.89,4.88]
[1724946670304,30.95476818,146.94,146.86,9.5305]
[1724946671110,3.4028,146.89,146.86,9.5305]
[1724946671314,0.04867503,146.91,146.86,4.88]
[1724946671510,0.04867503,146.91,146.86,4.92575926]
[1724946671810,3.4031,146.87,146.86,0.04575926]
[1724946672316,0.05120735,146.88,146.86,0.04575926]
[1724946673116,0.05120735,146.88,146.86,3.44895926]
[1724946673616,0.05120735,146.88,146.86,0.04575926]
[1724946674210,0.05120735,146.88,146.87,29.6431]
[1724946674411,254.12,146.98,146.87,26.24]
[1724946674620,254.12,146.98,146.9,3.4023]
[1724946674621,3.4017,146.94,146.9,3.4023]
[1724946675016,3.4017,146.94,146.89,26.24]
[1724946675212,3.4017,146.94,146.91,3.4022]
[1724946675509,0.04629089,146.94,146.91,0.04396504]
[1724946675707,0.04629089,146.94,146.91,26.28396504]
[1724946676315,0.04629089,146.94,146.93,3.4017]
[1724946678409,0.04629089,146.94,146.93,8.3017]
[1724946679209,0.04629089,146.94,146.93,3.4017]
[1724946679416,0.04629089,146.94,146.92,3.4019]
[1724946679606,0.04629089,146.94,146.92,8.3019]
[1724946679810,0.04629089,146.94,146.92,4.9]
[1724946680515,0.04629089,146.94,146.93,3.4017]
[1724946680813,0.04629089,146.94,146.92,4.9]
[1724946681012,0.04629089,146.94,146.92,3.4019]
[1724946681215,0.04629089,146.94,146.91,4.94396504]
[1724946681523,0.04629089,146.94,146.91,0.04396504]
[1724946681725,3.402,146.92,146.91,0.04396504]
[1724946684317,0.04629089,146.94,146.91,0.04396504]
[1724946685314,3.4019,146.93,146.91,0.04396504]
[1724946686515,3.402,146.92,146.91,0.04396504]
[1724946689012,26.24,146.92,146.84,3.4038]
[1724946689619,3.4025,146.9,146.82,4.9]
[1724946689825,26.24,146.92,146.82,4.9]
[1724946690017,0.04764387,146.88,146.86,0.04930788]
[1724946690217,0.04369911,146.88,146.86,0.04930788]
[1724946690414,3.4031,146.87,146.86,0.04930788]
[1724946691718,3.44669911,146.88,146.86,0.04930788]
[1724946692317,0.04369911,146.88,146.86,0.04930788]
[1724946692921,3.4031,146.87,146.86,0.04930788]
[1724946693626,0.04369911,146.88,146.86,0.04930788]
[1724946695318,3.4031,146.87,146.86,0.04930788]
[1724946697923,3.404,146.84,146.8,29.6447]
[1724946698520,3.404,146.84,146.81,3.4045]
[1724946698922,0.04440015,146.84,146.79,8.3048]
[1724946699124,0.04440015,146.84,146.81,0.04558586]
[1724946700030,3.4041,146.83,146.81,0.04558586]
[1724946700834,0.04440015,146.84,146.81,0.04558586]
[1724946700835,3.44830015,146.84,146.81,0.04558586]
[1724946701328,3.44830015,146.84,146.81,3.45008586]
[1724946701524,0.04440015,146.84,146.81,0.04558586]
[1724946702030,3.44830015,146.84,146.81,0.04558586]
[1724946702438,0.04440015,146.84,146.81,0.04558586]
[1724946702633,3.4043,146.82,146.81,0.04558586]
[1724946706143,0.04440015,146.84,146.81,0.04558586]
[1724946707628,0.04440015,146.84,146.81,3.44998586]
[1724946707834,0.04440015,146.84,146.81,0.04558586]
[1724946708231,3.4041,146.83,146.81,0.04558586]
[1724946709036,3.4041,146.83,146.81,3.44998586]
[1724946709241,3.44830015,146.84,146.81,3.44998586]
[1724946709839,3.44830015,146.84,146.82,3.4043]
[1724946710933,3.4041,146.83,146.81,0.04558586]
[1724946711333,0.04440015,146.84,146.81,0.04558586]
[1724946712030,3.4043,146.82,146.81,0.04558586]
[1724946718257,3.4043,146.82,146.67,26.24]
[1724946718258,26.24,146.82,146.67,26.24]
[1724946718465,2.6829,146.81,146.68,4.84]
[1724946718764,3.4062,146.74,146.71,3.4067]
[1724946718955,26.24,146.77,146.69,3.34561667]
[1724946719364,0.04891829,146.74,146.72,0.04399568]
[1724946719664,0.04891829,146.74,146.73,3.4064]
[1724946719957,0.04891829,146.74,146.72,0.04399568]
[1724946720353,0.04891829,146.74,146.72,3.45049568]
[1724946720567,0.04891829,146.74,146.72,0.04399568]
[1724946721458,3.4064,146.73,146.72,0.04399568]
[1724946723459,0.04891829,146.74,146.72,3.45049568]
[1724946723766,0.04891829,146.74,146.72,0.04399568]
[1724946723953,0.04891829,146.74,146.72,3.45049568]
[1724946724261,0.04891829,146.74,146.72,0.04399568]
[1724946724660,0.04891829,146.74,146.72,3.45049568]
[1724946725359,0.04891829,146.74,146.72,0.04399568]
[1724946726161,0.04891829,146.74,146.73,3.4064]
[1724946727168,0.04891829,146.74,146.72,3.45049568]
[1724946728054,3.45511829,146.74,146.72,3.45049568]
[1724946728658,0.04891829,146.74,146.72,3.45049568]
[1724946729061,0.04891829,146.74,146.73,3.4064]
[1724946729261,0.04891829,146.74,146.72,0.04399568]
[1724946729661,0.04891829,146.74,146.72,3.45049568]
[1724946730465,0.04891829,146.74,146.72,0.04399568]
[1724946730662,3.45521829,146.74,146.72,0.04399568]
[1724946730861,26.24,146.73,146.72,0.04399568]
[1724946731366,26.24,146.73,146.67,1.3706]
[1724946731668,29.6471,146.7,146.67,1.3706]
[1724946732060,29.6471,146.7,146.67,4.7783]
[1724946732256,29.69460698,146.7,146.67,4.82535948]
[1724946732464,3.4073,146.69,146.67,0.04705948]
[1724946733858,29.69460698,146.7,146.67,0.04705948]
[1724946734259,29.69460698,146.7,146.67,3.45485948]
[1724946735573,3.45460698,146.7,146.67,3.45485948]
[1724946735777,29.69460698,146.7,146.67,3.45485948]
[1724946737176,26.28750698,146.7,146.67,0.04705948]
[1724946737872,26.24,146.69,146.67,0.04705948]
[1724946738373,29.6474,146.69,146.67,0.04705948]
[1724946739971,26.24,146.69,146.67,0.04705948]
[1724946740271,26.24,146.69,146.61,4.74]
[1724946740472,26.24,146.67,146.61,4.74]
[1724946740672,26.24,146.67,146.64,3.4083]
[1724946740878,114.06502494,146.72,146.61,26.24]
[1724946740879,26.24,146.69,146.61,26.24]
[1724946741072,0.05180983,146.66,146.65,3.4081]
[1724946748678,0.05180983,146.66,146.64,3.45198618]
[1724946750484,3.4082,146.65,146.64,0.04358618]
[1724946750978,10.46,146.66,146.49,6.8239]
[1724946751182,10.46,146.61,146.55,10.46]
[1724946751487,3.4099,146.58,146.55,3.4104]
[1724946751994,3.45466339,146.58,146.55,3.45656068]
[1724946752294,0.04476339,146.58,146.55,3.45656068]
[1724946752683,10.46,146.57,146.55,0.04616068]
[1724946752994,10.46,146.56,146.55,0.04616068]
[1724946753196,13.8703,146.56,146.55,0.04616068]
[1724946753991,3.4103,146.56,146.55,0.04616068]
[1724946756189,29.6203,146.56,146.55,0.04616068]
[1724946757088,3.4113,146.52,146.47,1.2697]
[1724946757287,26.21,146.54,146.47,1.2697]
[1724946757491,26.21,146.52,146.47,4.6821]
[1724946757795,26.21,146.52,146.39,27.26]
[1724946757986,0.04997934,146.47,146.44,0.05015443]
[1724946758293,0.0510368,146.47,146.44,0.04930657]
[1724946759495,0.0510368,146.47,146.44,3.46230657]
[1724946759889,0.0510368,146.47,146.44,0.04930657]
[1724946760093,0.0510368,146.47,146.45,3.4127]
[1724946760291,0.0510368,146.47,146.44,0.04930657]
[1724946760494,3.4637368,146.47,146.44,0.04930657]
[1724946760704,0.0510368,146.47,146.44,0.04930657]
[1724946761295,3.4635368,146.47,146.44,0.04930657]
[1724946762600,3.4635368,146.47,146.44,3.46240657]
[1724946763104,3.4635368,146.47,146.44,0.04930657]
[1724946763498,3.4128,146.46,146.44,0.04930657]
[1724946764099,3.4129,146.45,146.44,0.04930657]
[1724946764700,3.4127,146.46,146.44,0.04930657]
[1724946765396,3.4634368,146.47,146.44,0.04930657]
[1724946766504,3.4128,146.46,146.44,0.04930657]
[1724946767008,29.6228,146.46,146.44,0.04930657]
[1724946767808,29.6229,146.45,146.44,0.04930657]
[1724946768399,26.21,146.45,146.44,0.04930657]
[1724946769107,3.4128,146.46,146.44,0.04930657]
[1724946769108,29.6228,146.46,146.44,0.04930657]
[1724946770101,3.4129,146.45,146.44,0.04930657]
[1724946770505,26.21,146.46,146.44,0.04930657]
[1724946770905,0.0510368,146.47,146.44,0.04930657]
[1724946771603,3.4128,146.46,146.44,0.04930657]
[1724946771805,26.21,146.46,146.44,0.04930657]
[1724946772912,3.4129,146.45,146.44,0.04930657]
[1724946773203,26.21,146.46,146.38,1.3213]
[1724946773409,26.21,146.43,146.38,1.3213]
[1724946773615,26.21,146.43,146.41,3.4138]
[1724946773908,3.4133,146.44,146.41,3.4138]
[1724946774213,3.46530659,146.44,146.41,3.46481398]
[1724946775308,0.05200659,146.44,146.41,0.05101398]
[1724946776013,3.4134,146.43,146.41,0.05101398]
[1724946776409,0.05200659,146.44,146.41,0.05101398]
[1724946776608,3.4134,146.43,146.41,0.05101398]
[1724946776809,0.05200659,146.44,146.41,3.46471398]
[1724946777205,0.05200659,146.44,146.41,0.05101398]
[1724946777410,0.05200659,146.44,146.43,3.4134]
[1724946780113,0.05200659,146.44,146.42,1.3709]
[1724946780705,0.05200659,146.44,146.43,3.4134]
[1724946783917,0.05200659,146.44,146.42,3.4135]
[1724946785216,3.46520659,146.44,146.41,3.46471398]
[1724946785811,3.4134,146.43,146.41,0.05101398]
[1724946787009,3.46520659,146.44,146.41,3.46481398]
[1724946787318,0.05200659,146.44,146.41,3.46481398]
[1724946787521,3.4134,146.43,146.41,0.05101398]
[1724946787819,26.26200659,146.44,146.41,0.05101398]
[1724946788312,3.4136,146.42,146.41,0.05101398]
[1724946789224,3.46520659,146.44,146.41,3.46471398]
[1724946790123,0.05200659,146.44,146.41,3.46471398]
[1724946790331,3.4134,146.43,146.41,3.46471398]
[1724946790630,26.26200659,146.44,146.41,0.05101398]
[1724946790828,3.4136,146.42,146.41,0.05101398]
[1724946791030,0.05200659,146.44,146.41,0.05101398]
[1724946791332,0.05200659,146.44,146.42,3.4135]
[1724946791534,0.05200659,146.44,146.41,0.05101398]
[1724946792532,3.4136,146.42,146.41,0.05101398]
[1724946793122,3.4134,146.43,146.41,0.05101398]
[1724946794037,3.4136,146.42,146.41,0.05101398]
[1724946794734,3.4135,146.43,146.41,0.05101398]
[1724946794928,10.49,146.43,146.41,0.05101398]
[1724946795133,13.9036,146.42,146.41,0.05101398]
[1724946798133,3.4136,146.42,146.41,0.05101398]
[1724946798329,13.9036,146.42,146.41,0.05101398]
[1724946802941,3.4145,146.39,146.33,13.1681]
[1724946803240,10.49,146.39,146.33,2.6781]
[1724946803642,10.49,146.37,146.3,15.29]
[1724946803938,10.49,146.37,146.3,10.49]
[1724946804143,3.46182916,146.35,146.32,3.46624833]
[1724946804542,0.04642916,146.35,146.33,3.4155]
[1724946806143,3.46162916,146.35,146.32,3.46624833]
[1724946807946,0.04642916,146.35,146.33,3.4157]
[1724946810447,0.04642916,146.35,146.34,3.4155]
[1724946811245,0.04642916,146.35,146.34,4.7699]
[1724946812851,10.49,146.4,146.34,11.8444]
[1724946813344,10.49,146.4,146.35,1.3107]
[1724946813654,10.49,146.39,146.35,1.3107]
[1724946813852,0.04675542,146.38,146.36,0.04399825]
[1724946814052,0.04675542,146.38,146.37,3.4146]
[1724946815143,10.49,146.43,146.4,3.4139]
[1724946815345,13.9035,146.43,146.4,3.4139]
[1724946815542,10.49,146.41,146.35,6.1307]
[1724946815748,10.49,146.4,146.35,6.1307]
[1724946816153,0.04724081,146.39,146.36,0.04474681]
[1724946816757,0.04724081,146.39,146.38,3.4145]
[1724946817059,10.49,146.42,146.37,10.49]
[1724946817254,10.49,146.42,146.41,3.4138]
[1724946817754,10.49,146.44,146.37,10.49]
[1724946818052,0.04902227,146.42,146.39,10.54210695]
[1724946818350,0.04672469,146.42,146.4,3.44999221]
[1724946818851,0.04672469,146.42,146.41,3.4138]
[1724946820153,0.04672469,146.42,146.4,3.414]
[1724946820359,10.49,146.41,146.4,3.414]
[1724946820855,0.04672469,146.42,146.41,3.4138]